bitfinex-derivatives/quotes_BTCF0:USTF0_20250720
["timestamp","ask_amount","ask_price","bid_price","bid_amount"]
[1753020119357,0.1386,118550.0,118540.0,0.82739594]
[1753020119565,0.1386,118550.0,118540.0,1.0749224]
[1753020119762,0.1386,118550.0,118540.0,1.15031074]
[1753020120269,0.11485,118550.0,118540.0,1.72196474]
[1753020120467,0.11485,118550.0,118540.0,1.78226996]
[1753020120672,0.11485,118550.0,118540.0,1.70688162]
[1753020121165,0.11485,118550.0,118540.0,1.5991859]
[1753020121665,0.06534656,118560.0,118550.0,0.1686334]
[1753020121868,0.13256656,118560.0,118550.0,1.17004082]
[1753020122167,0.13256656,118560.0,118550.0,0.82004082]
[1753020122356,0.13256656,118560.0,118550.0,1.18004082]
[1753020122561,0.13256656,118560.0,118550.0,0.60482174]
[1753020122761,0.19534656,118560.0,118550.0,1.40332082]
[1753020122971,0.19534656,118560.0,118550.0,1.32793248]
[1753020123172,0.19534656,118560.0,118550.0,1.40318362]
[1753020124271,0.13256656,118560.0,118550.0,1.40318362]
[1753020124466,0.25116656,118560.0,118550.0,0.81990362]
[1753020124770,0.25116656,118560.0,118550.0,0.96709248]
[1753020124970,0.25116656,118560.0,118550.0,0.38385248]
[1753020125159,0.25116656,118560.0,118550.0,1.17790648]
[1753020125359,0.25116656,118560.0,118550.0,1.53870648]
[1753020125564,0.25116656,118560.0,118550.0,1.61395762]
[1753020126573,0.25116656,118560.0,118550.0,1.53870648]
[1753020127571,0.25116656,118560.0,118550.0,1.59882073]
[1753020128571,0.25116656,118560.0,118550.0,1.01562073]
[1753020128771,0.25116656,118560.0,118550.0,1.59874073]
[1753020132070,0.20529656,118560.0,118550.0,1.59874073]
[1753020132276,0.19534656,118560.0,118550.0,1.53862648]
[1753020132775,0.13256656,118560.0,118550.0,1.59871441]
[1753020135575,0.13256656,118560.0,118550.0,1.53862648]
[1753020136280,0.13256656,118560.0,118550.0,1.90862648]
[1753020136581,0.13256656,118560.0,118550.0,1.98387762]
[1753020136879,0.13256656,118560.0,118550.0,1.94870386]
[1753020138280,0.13256656,118560.0,118550.0,1.88862648]
[1753020138674,0.13256656,118560.0,118550.0,1.59870564]
[1753020138876,0.13256656,118560.0,118550.0,1.97870564]
[1753020139183,0.13256656,118560.0,118550.0,1.59870564]
[1753020139375,0.13256656,118560.0,118550.0,1.90862648]
[1753020140470,0.13256656,118560.0,118550.0,2.6177927]
[1753020140679,0.12564571,118580.0,118570.0,0.168605]
[1753020140878,0.1186,118590.0,118580.0,0.1685907]
[1753020141186,0.2386,118590.0,118580.0,0.78966621]
[1753020142375,0.2386,118590.0,118580.0,0.64058364]
[1753020142572,0.2386,118590.0,118580.0,0.85580272]
[1753020142778,0.2386,118590.0,118580.0,1.43872272]
[1753020142980,0.2386,118590.0,118580.0,0.85580272]
[1753020143184,0.2386,118590.0,118580.0,1.07788272]
[1753020144173,0.12,118590.0,118580.0,1.07788272]
[1753020144379,0.0758392,118590.0,118580.0,2.15746137]
[1753020144582,0.0440081,118590.0,118580.0,1.92224229]
[1753020144784,0.0440081,118590.0,118580.0,1.81531321]
[1753020145084,0.0440081,118590.0,118580.0,1.82717321]
[1753020145285,0.0423681,118590.0,118580.0,2.03802721]
[1753020145784,0.0423681,118590.0,118580.0,2.04798721]
[1753020146180,0.005,118600.0,118590.0,0.1685765]
[1753020146480,0.18214,118600.0,118590.0,1.16671274]
[1753020146684,0.115,118600.0,118590.0,1.18174559]
[1753020147386,0.115,118600.0,118590.0,1.76754559]
[1753020147585,0.115,118600.0,118590.0,1.40741093]
[1753020147777,0.19287,118600.0,118590.0,1.34732401]
[1753020148378,0.24261,118600.0,118590.0,0.18850493]
[1753020148588,0.24261,118600.0,118590.0,0.98752401]
[1753020149089,0.24261,118600.0,118590.0,0.40472401]
[1753020149275,0.24261,118600.0,118590.0,0.98744401]
[1753020149481,0.24261,118600.0,118590.0,1.40833093]
[1753020149788,0.24261,118600.0,118590.0,0.82561093]
[1753020150086,0.24261,118600.0,118590.0,1.40833093]
[1753020150283,0.24261,118600.0,118590.0,1.34387893]
[1753020150478,0.7719723,118600.0,118590.0,1.04316585]
[1753020150683,0.7719723,118600.0,118590.0,1.25838493]
[1753020150875,0.60341,118600.0,118590.0,1.25838493]
[1753020151082,0.60341,118600.0,118590.0,0.67566493]
[1753020151287,0.60341,118600.0,118590.0,1.25838493]
[1753020151482,0.24261,118600.0,118590.0,1.25838493]
[1753020151888,0.24261,118600.0,118590.0,1.19829801]
[1753020152082,0.24261,118600.0,118590.0,0.61557801]
[1753020152386,0.24261,118600.0,118590.0,1.19825801]
[1753020152584,0.24261,118600.0,118590.0,1.55905801]
[1753020153775,0.24261,118600.0,118590.0,1.60410727]
[1753020154592,0.19287,118600.0,118590.0,1.60410727]
[1753020155785,0.18214,118600.0,118590.0,1.60410727]
[1753020155988,0.18214,118600.0,118590.0,1.97705727]
[1753020155989,0.07893,118600.0,118590.0,1.97705727]
[1753020156492,0.07893,118600.0,118590.0,1.93200801]
[1753020156981,0.0371358,118600.0,118590.0,1.93200801]
[1753020157177,1e-07,118600.0,118590.0,1.95906801]
[1753020157985,0.0382101,118600.0,118590.0,2.01915493]
[1753020158380,1e-07,118600.0,118590.0,1.97994493]
[1753020160091,0.0382101,118600.0,118590.0,1.91985801]
[1753020160593,0.0382101,118600.0,118590.0,1.95906801]
[1753020160986,0.1276101,118600.0,118590.0,1.59818801]
[1753020161491,0.1276101,118600.0,118590.0,1.65827493]
[1753020161889,0.0778701,118600.0,118590.0,2.01907493]
[1753020162104,0.0489401,118600.0,118590.0,1.43647493]
[1753020162394,0.0382101,118600.0,118590.0,2.01907493]
[1753020164398,0.0382101,118600.0,118590.0,1.43647493]
[1753020164592,0.0671401,118600.0,118590.0,1.65827493]
[1753020164895,0.0778701,118600.0,118590.0,1.65827493]
[1753020165297,0.0778701,118600.0,118590.0,1.07567493]
[1753020165496,0.0778701,118600.0,118590.0,1.65827493]
[1753020165898,0.0489401,118600.0,118590.0,1.65827493]
[1753020166396,0.0382101,118600.0,118590.0,1.65827493]
[1753020167094,0.0778701,118600.0,118590.0,1.65827493]
[1753020167393,0.0778701,118600.0,118590.0,1.65832438]
[1753020168198,0.0778701,118600.0,118590.0,1.59818801]
[1753020168599,0.0778701,118600.0,118590.0,1.59954801]
[1753020168799,0.0778701,118600.0,118590.0,1.96034801]
[1753020168995,0.0778701,118600.0,118590.0,1.74512893]
[1753020169297,0.0778701,118600.0,118590.0,1.96034801]
[1753020169598,0.0489401,118600.0,118590.0,2.32034801]
[1753020170197,0.0489401,118600.0,118590.0,2.53556709]
[1753020170395,0.0489401,118600.0,118590.0,2.61081823]
[1753020170597,0.0489401,118600.0,118590.0,2.38559915]
[1753020170896,0.0778701,118600.0,118590.0,2.38559915]
[1753020172298,0.0778701,118600.0,118590.0,2.03551915]
[1753020173101,0.0778701,118600.0,118590.0,2.35551915]
[1753020173398,1e-07,118600.0,118590.0,2.53016823]
[1753020173802,1e-07,118600.0,118590.0,2.55016823]
[1753020174801,1e-07,118600.0,118590.0,2.57016823]
[1753020175398,1e-07,118600.0,118590.0,2.71026823]
[1753020176602,1e-07,118600.0,118590.0,2.63501709]
[1753020176800,1e-07,118600.0,118590.0,2.74144123]
[1753020180102,1e-07,118600.0,118590.0,2.63501709]
[1753020182605,0.17253158,118620.0,118610.0,0.27735393]
[1753020182904,0.25735158,118620.0,118610.0,1.34960875]
[1753020183111,0.25735158,118620.0,118610.0,1.2593065]
[1753020183410,0.25735158,118620.0,118610.0,1.75137301]
[1753020184005,0.42588548,118620.0,118610.0,1.16893301]
[1753020184209,0.25735158,118620.0,118610.0,1.82661526]
[1753020184399,0.42588548,118620.0,118610.0,1.85679526]
[1753020184607,0.42588548,118620.0,118610.0,0.52257526]
[1753020184809,0.42588548,118620.0,118610.0,1.02977301]
[1753020185205,0.42588548,118620.0,118610.0,1.24058701]
[1753020185406,0.42588548,118620.0,118610.0,1.28968926]
[1753020185596,0.44467031,118620.0,118610.0,0.68723926]
[1753020185802,0.44467031,118620.0,118610.0,1.05442018]
[1753020185998,1.02068939,118620.0,118610.0,0.28609625]
[1753020186201,0.3033823,118600.0,118590.0,0.27391565]
[1753020186402,0.3033823,118600.0,118580.0,0.10828331]
[1753020186403,0.3033965,118590.0,118580.0,0.2107312]
[1753020186608,0.98941558,118590.0,118580.0,0.2107312]
[1753020186807,1.40807158,118590.0,118580.0,0.2107312]
[1753020187000,1.40807158,118590.0,118580.0,0.1685838]
[1753020187402,0.2221149,118570.0,118560.0,0.252916]
[1753020187609,0.62864398,118570.0,118560.0,0.252916]
[1753020187812,1.21156792,118570.0,118560.0,0.252916]
[1753020188014,1.5532488,118570.0,118560.0,0.1562092]
[1753020188304,1.33802972,118570.0,118560.0,0.0727292]
[1753020188509,1.4719388,118570.0,118560.0,0.0962792]
[1753020189111,1.5279488,118570.0,118560.0,0.0962792]
[1753020189312,1.5279488,118570.0,118560.0,0.210854]
[1753020189610,1.5279488,118570.0,118560.0,0.3794731]
[1753020190214,1.5279488,118570.0,118560.0,0.210854]
[1753020190801,0.1686192,118560.0,118550.0,0.2107838]
[1753020191111,1.44711828,118560.0,118550.0,0.2107838]
[1753020191312,1.86581428,118560.0,118550.0,0.2107838]
[1753020191511,0.649496,118560.0,118550.0,0.56222288]
[1753020191705,0.12,118560.0,118550.0,1.50550288]
[1753020192116,0.12,118560.0,118550.0,1.50750288]
[1753020193609,0.12,118560.0,118550.0,1.50850288]
[1753020193808,0.12,118560.0,118550.0,1.71935688]
[1753020194113,0.12,118560.0,118550.0,2.05735688]
[1753020194310,0.12,118560.0,118550.0,2.27457596]
[1753020194507,0.01866302,118570.0,118560.0,0.3048392]
[1753020194713,0.03866302,118570.0,118560.0,1.09607736]
[1753020194914,0.03866302,118570.0,118560.0,1.47607736]
[1753020195117,0.03866302,118570.0,118560.0,1.09607736]
[1753020195311,0.03866302,118570.0,118560.0,1.30693136]
[1753020195612,0.08,118590.0,118580.0,0.3048108]
[1753020195815,0.92041109,118610.0,118600.0,0.2657023]
[1753020196107,0.92041109,118610.0,118600.0,0.2778823]
[1753020196108,0.88844817,118610.0,118600.0,0.2778823]
[1753020196313,0.19402247,118610.0,118600.0,1.10252138]
[1753020197313,0.19402247,118610.0,118600.0,1.46332138]
[1753020197513,0.16686247,118610.0,118600.0,1.46332138]
[1753020198214,0.16686247,118610.0,118600.0,1.53182304]
[1753020198409,0.14882539,118610.0,118600.0,1.53182304]
[1753020199222,0.14882539,118610.0,118600.0,1.56654299]
[1753020199420,0.14882539,118610.0,118600.0,1.56954299]
[1753020199620,0.14882539,118610.0,118600.0,1.57054299]
[1753020200113,0.31737349,118610.0,118600.0,1.20974299]
[1753020200320,0.38318349,118610.0,118600.0,1.11039632]
[1753020200522,0.38318349,118610.0,118600.0,1.11139632]
[1753020200720,0.38318349,118610.0,118600.0,1.36333535]
[1753020201422,0.38318349,118610.0,118600.0,0.78085535]
[1753020201618,0.74398349,118610.0,118600.0,1.36333535]
[1753020202019,0.57543539,118610.0,118600.0,1.36333535]
[1753020202212,0.74398349,118610.0,118600.0,1.36333535]
[1753020202415,0.74398349,118610.0,118600.0,1.36433535]
[1753020202622,0.74398349,118610.0,118600.0,0.5216363]
[1753020202823,0.74398349,118610.0,118600.0,1.0771763]
[1753020203823,0.74398349,118610.0,118600.0,1.0751763]
[1753020204120,0.17598539,118610.0,118600.0,1.35401533]
[1753020204318,0.34453349,118610.0,118600.0,1.35401533]
[1753020204622,0.34453349,118610.0,118600.0,1.1020763]
[1753020204822,0.38318349,118610.0,118600.0,1.1000763]
[1753020205017,0.39042349,118610.0,118600.0,1.1000763]
[1753020205217,0.41016349,118610.0,118600.0,1.1000763]
[1753020205419,0.77096349,118610.0,118600.0,1.10866432]
[1753020206126,0.41016349,118610.0,118600.0,1.10866432]
[1753020206718,0.41016349,118610.0,118600.0,0.52622432]
[1753020206920,0.41016349,118610.0,118600.0,1.10862432]
[1753020207423,0.77096349,118610.0,118600.0,1.10862432]
[1753020207924,0.78329349,118610.0,118600.0,1.10862432]
[1753020208117,0.78822349,118610.0,118600.0,1.10862432]
[1753020208522,0.95684749,118610.0,118600.0,0.4237763]
[1753020208824,1.20878652,118610.0,118600.0,0.4237763]
[1753020209128,1.20878652,118610.0,118600.0,0.212854]
[1753020209827,1.45878652,118610.0,118600.0,0.212854]
[1753020210022,1.45878652,118610.0,118600.0,0.207924]
[1753020211026,1.4773901,118610.0,118600.0,0.207924]
[1753020211331,1.4773901,118610.0,118600.0,0.205924]
[1753020212529,1.4773901,118610.0,118600.0,0.241574]
[1753020212732,0.95191749,118610.0,118600.0,0.5364063]
[1753020212934,0.73231349,118610.0,118600.0,0.5364063]
[1753020213121,1.31467349,118610.0,118600.0,0.5364063]
[1753020213528,0.73231349,118610.0,118600.0,0.5364063]
[1753020214433,0.50962539,118610.0,118600.0,0.5384063]
[1753020214633,0.67817349,118610.0,118600.0,0.5384063]
[1753020214832,0.71023349,118610.0,118600.0,0.5384063]
[1753020215131,0.72997349,118610.0,118600.0,0.5384063]
[1753020215830,0.54168539,118610.0,118600.0,0.5384063]
[1753020216030,0.50962539,118610.0,118600.0,0.5384063]
[1753020216331,0.50962539,118610.0,118600.0,0.79034533]
[1753020216533,0.50962539,118610.0,118600.0,0.5384063]
[1753020217321,0.67817349,118610.0,118600.0,0.5384063]
[1753020217536,0.71023349,118610.0,118600.0,0.5384063]
[1753020217833,0.71023349,118610.0,118600.0,0.5364063]
[1753020218033,0.71023349,118610.0,118600.0,0.5394063]
[1753020218433,0.54168539,118610.0,118600.0,0.5394063]
[1753020219029,0.50962539,118610.0,118600.0,0.79134533]
[1753020219231,0.14882539,118610.0,118600.0,1.15314533]
[1753020220827,0.14882539,118610.0,118600.0,1.15414533]
[1753020221028,0.14882539,118610.0,118600.0,1.15514533]
[1753020222032,0.14882539,118610.0,118600.0,1.21527612]
[1753020223930,0.14882539,118610.0,118600.0,0.96333709]
[1753020224138,0.14882539,118610.0,118600.0,1.21527612]
[1753020224432,0.13,118610.0,118600.0,1.23259898]
[1753020227233,0.13,118610.0,118600.0,1.19563888]
[1753020230436,0.13,118610.0,118600.0,1.13550809]
[1753020230932,0.1818,118610.0,118600.0,1.71774809]
[1753020231241,0.16206,118610.0,118600.0,1.71774809]
[1753020231641,0.13,118610.0,118600.0,1.71774809]
[1753020232436,0.13,118610.0,118600.0,1.77787888]
[1753020232637,0.3997581,118610.0,118600.0,1.77787888]
[1753020233044,0.3997581,118610.0,118600.0,1.71774809]
[1753020234044,0.3997581,118610.0,118600.0,1.13550809]
[1753020234245,0.4120881,118610.0,118600.0,1.50272916]
[1753020234546,0.3997581,118610.0,118600.0,1.50272916]
[1753020234746,0.62706703,118610.0,118600.0,1.18473719]
[1753020235043,0.98786703,118610.0,118600.0,1.1246064]
[1753020235748,0.98786703,118610.0,118600.0,1.1226064]
[1753020235942,1.15649103,118610.0,118600.0,0.4280463]
[1753020236149,1.15649103,118610.0,118600.0,0.3744863]
[1753020236446,1.15649103,118610.0,118600.0,0.4074863]
[1753020236744,1.15649103,118610.0,118600.0,0.4213163]
[1753020236946,1.15649103,118610.0,118600.0,0.4653963]
[1753020239744,0.8797721,118610.0,118600.0,0.5274163]
[1753020239944,1.1480521,118610.0,118600.0,0.74239523]
[1753020240145,1.1480521,118610.0,118600.0,0.5274163]
[1753020240648,1.3402281,118610.0,118600.0,0.5274163]
[1753020240842,0.7580281,118610.0,118600.0,0.5274163]
[1753020241045,1.3402281,118610.0,118600.0,0.5274163]
[1753020241541,0.9794281,118610.0,118600.0,0.5274163]
[1753020241742,0.7580281,118610.0,118600.0,0.5274163]
[1753020242040,1.3402281,118610.0,118600.0,0.5274163]
[1753020242240,0.9794281,118610.0,118600.0,0.5274163]
[1753020242448,0.9905081,118610.0,118600.0,0.5274163]
[1753020242841,0.50853,118610.0,118600.0,0.5274163]
[1753020243038,0.13,118610.0,118600.0,0.74239523]
[1753020243242,0.2985481,118610.0,118600.0,0.74239523]
[1753020243540,0.13,118610.0,118600.0,0.74239523]
[1753020243738,0.13,118610.0,118600.0,0.5274163]
[1753020243941,0.2985481,118610.0,118600.0,0.74239523]
[1753020244348,0.2985481,118610.0,118600.0,0.74339523]
[1753020244742,0.2985481,118610.0,118600.0,0.74439523]
[1753020245545,0.3296681,118610.0,118600.0,0.74439523]
[1753020247244,0.3473981,118610.0,118600.0,0.8590163]
[1753020247447,0.13,118610.0,118600.0,0.5294163]
[1753020247640,0.00253158,118620.0,118610.0,0.3214781]
[1753020247842,0.09,118640.0,118630.0,0.1685197]
[1753020248046,0.12788993,118640.0,118630.0,1.20284493]
[1753020248251,0.11,118640.0,118630.0,1.28710123]
[1753020248850,0.11,118640.0,118630.0,1.64790123]
[1753020249745,0.11,118640.0,118630.0,1.71440846]
[1753020250345,0.11,118640.0,118630.0,1.91833246]
[1753020250545,0.2785055,118640.0,118630.0,1.91833246]
[1753020250854,0.2785055,118640.0,118630.0,1.85182523]
[1753020251150,0.3096255,118640.0,118630.0,1.6368463]
[1753020252152,0.3791755,118640.0,118630.0,1.5635175]
[1753020253751,0.3322955,118640.0,118630.0,1.5635175]
[1753020254344,0.11,118640.0,118630.0,1.81537556]
[1753020254546,0.11,118640.0,118630.0,1.88255583]
[1753020255559,0.2785055,118640.0,118630.0,1.81537556]
[1753020256051,0.2785055,118640.0,118630.0,1.5635175]
[1753020256449,0.3096255,118640.0,118630.0,1.5635175]
[1753020256948,0.3322955,118640.0,118630.0,1.5635175]
[1753020257152,0.82322756,118640.0,118630.0,0.4192737]
[1753020257453,1.40518756,118640.0,118630.0,0.4192737]
[1753020257752,1.76598756,118640.0,118630.0,0.294834]
[1753020257949,1.76598756,118640.0,118630.0,0.4633536]
[1753020258148,1.5141295,118640.0,118630.0,0.294834]
[1753020258355,1.76598756,118640.0,118630.0,0.4192736]
[1753020258851,1.76598756,118640.0,118630.0,0.4633536]
[1753020259255,1.76598756,118640.0,118630.0,0.294834]
[1753020259553,1.76598756,118640.0,118630.0,0.250754]
[1753020259741,1.76598756,118640.0,118630.0,0.4192737]
[1753020259941,1.76598756,118640.0,118630.0,0.203924]
[1753020261348,1.76598756,118640.0,118610.0,0.6715171]
[1753020261349,0.2223239,118620.0,118610.0,0.3437182]
[1753020261550,0.7736139,118620.0,118610.0,0.3510182]
[1753020261751,0.7736139,118620.0,118610.0,0.4057382]
[1753020262461,1.3555739,118620.0,118610.0,0.4087382]
[1753020263758,1.37458836,118620.0,118610.0,0.4087382]
[1753020264557,1.37458836,118620.0,118610.0,0.6195922]
[1753020265169,0.79392836,118620.0,118610.0,0.6195922]
[1753020265455,1.37584836,118620.0,118610.0,0.6195922]
[1753020265665,0.79392836,118620.0,118610.0,0.6195922]
[1753020265856,1.37588836,118620.0,118610.0,0.6195922]
[1753020266057,1.37588836,118620.0,118610.0,0.6205922]
[1753020267163,0.13901446,118620.0,118610.0,1.23325026]
[1753020267864,0.13901446,118620.0,118610.0,1.81521026]
[1753020268762,0.12,118620.0,118610.0,1.81521026]
[1753020270157,0.12,118620.0,118610.0,1.87534105]
[1753020270757,0.08944,118620.0,118610.0,1.87534105]
[1753020270958,0.17,118640.0,118630.0,0.3210897]
[1753020271264,0.35207437,118650.0,118640.0,0.3355555]
[1753020271461,0.47207437,118650.0,118640.0,0.3355555]
[1753020271957,0.51963437,118650.0,118640.0,0.3355555]
[1753020273562,0.51963437,118650.0,118640.0,0.34407759]
[1753020273964,0.51963437,118650.0,118640.0,0.3355555]
[1753020274756,0.47751117,118650.0,118640.0,0.3355555]
[1753020275167,0.47751117,118650.0,118640.0,0.5464095]
[1753020275563,0.47751117,118650.0,118640.0,0.5319295]
[1753020275867,0.69241877,118650.0,118640.0,0.5319295]
[1753020276370,1.05321877,118650.0,118640.0,0.5319295]
[1753020276862,1.05321877,118650.0,118640.0,0.210854]
[1753020277066,1.05321877,118650.0,118640.0,0.3793595]
[1753020277363,1.05935117,118650.0,118640.0,0.5319295]
[1753020277567,1.05935117,118650.0,118640.0,0.5464095]
[1753020279167,1.27425877,118650.0,118640.0,0.5464095]
[1753020282367,1.63505877,118650.0,118640.0,0.5319295]
[1753020282571,1.27425877,118650.0,118640.0,0.5319295]
[1753020283465,0.39852117,118650.0,118640.0,0.5464095]
[1753020283666,1.27421877,118650.0,118640.0,0.5319295]
[1753020284470,1.27421877,118650.0,118640.0,0.4938995]
[1753020284964,1.27421877,118650.0,118640.0,0.5319295]
[1753020288172,1.27421877,118650.0,118640.0,0.4938995]
[1753020288676,1.63501877,118650.0,118640.0,0.4938995]
[1753020289178,1.63501877,118650.0,118640.0,0.4627595]
[1753020289481,1.63501877,118650.0,118640.0,0.4301395]
[1753020290769,0.16116,118640.0,118620.0,0.0842639]
[1753020290973,0.9053873,118630.0,118620.0,0.3673302]
[1753020291277,1.0313997,118630.0,118620.0,0.4053602]
[1753020292784,1.0313997,118630.0,118620.0,0.41386278]
[1753020293272,1.0313997,118630.0,118620.0,0.64325038]
[1753020293472,0.9838397,118630.0,118620.0,0.64525038]
[1753020293978,0.9838397,118630.0,118620.0,0.85610438]
[1753020294578,0.4021197,118630.0,118620.0,0.85610438]
[1753020295480,0.4021197,118630.0,118620.0,0.64119678]
[1753020295676,0.9838397,118630.0,118620.0,0.64119678]
[1753020296173,0.9838397,118630.0,118620.0,0.85610438]
[1753020296174,1.0344297,118630.0,118620.0,0.85610438]
[1753020297282,0.9838397,118630.0,118620.0,0.85610438]
[1753020297582,0.4021197,118630.0,118620.0,1.21690438]
[1753020298781,0.12,118630.0,118620.0,1.21690438]
[1753020298985,0.12,118630.0,118620.0,1.27703517]
[1753020299683,0.15704,118630.0,118620.0,1.27703517]
[1753020299889,0.17149,118630.0,118620.0,1.27703517]
[1753020300779,0.12,118630.0,118620.0,1.27703517]
[1753020302685,0.17149,118630.0,118620.0,1.06212757]
[1753020302891,0.20526,118630.0,118620.0,1.27703517]
[1753020303385,0.3737797,118630.0,118620.0,1.21690438]
[1753020303587,0.20526,118630.0,118620.0,1.21690438]
[1753020303987,0.3737797,118630.0,118620.0,1.21690438]
[1753020304292,0.20526,118630.0,118620.0,1.21690438]
[1753020304484,0.3737797,118630.0,118620.0,1.21690438]
[1753020305389,0.4056497,118630.0,118620.0,1.00199678]
[1753020305588,1.0319473,118630.0,118620.0,1.13777637]
[1753020305986,1.0319473,118630.0,118620.0,0.55617637]
[1753020307701,1.0319473,118630.0,118620.0,0.52503637]
[1753020310594,1.0319473,118630.0,118620.0,0.49241637]
[1753020311992,1.0319473,118630.0,118620.0,0.4321679]
[1753020312401,1.0319473,118630.0,118620.0,0.212854]
[1753020314897,1.2005473,118630.0,118620.0,0.212854]
[1753020315500,0.1693139,118620.0,118610.0,0.08783]
[1753020315700,1.47544031,118620.0,118610.0,0.08783]
[1753020316604,0.1693281,118610.0,118600.0,0.10253]
[1753020316801,0.5042357,118610.0,118600.0,0.2710923]
[1753020317101,0.8650357,118610.0,118600.0,0.2710923]
[1753020317703,0.8650357,118610.0,118600.0,0.2750923]
[1753020318604,0.8650357,118610.0,118600.0,0.4859463]
[1753020318806,0.8650357,118610.0,118600.0,0.4732463]
[1753020319297,0.8650357,118610.0,118600.0,0.4879463]
[1753020320799,0.8650357,118610.0,118600.0,0.4732463]
[1753020321000,0.8650357,118610.0,118600.0,0.4879463]
[1753020321304,0.2890281,118610.0,118600.0,0.7698039]
[1753020321611,0.12,118610.0,118600.0,1.7121239]
[1753020321911,0.2885481,118610.0,118600.0,1.7121239]
[1753020322205,0.2885481,118610.0,118600.0,1.4972163]
[1753020324399,0.8647357,118610.0,118600.0,0.5548963]
[1753020324603,0.5039357,118610.0,118600.0,0.5548963]
[1753020325707,0.8647357,118610.0,118600.0,0.5548963]
[1753020326101,0.6526381,118610.0,118600.0,0.5548963]
[1753020326304,0.5067457,118610.0,118600.0,0.5548963]
[1753020326808,0.8675457,118610.0,118600.0,0.5548963]
[1753020327101,0.5067457,118610.0,118600.0,0.5548963]
[1753020327504,0.6526381,118610.0,118600.0,0.5548963]
[1753020327704,0.5067457,118610.0,118600.0,0.5548963]
[1753020328303,1.0882257,118610.0,118600.0,0.5548963]
[1753020328503,0.8733181,118610.0,118600.0,0.5548963]
[1753020328906,0.2885481,118610.0,118600.0,1.1306039]
[1753020330908,0.12,118610.0,118600.0,1.1306039]
[1753020331211,0.12,118610.0,118600.0,1.19085237]
[1753020331514,0.2885481,118610.0,118600.0,0.97594477]
[1753020331812,0.2885481,118610.0,118600.0,1.19085237]
[1753020332311,0.12,118610.0,118600.0,1.19085237]
[1753020332514,0.2885481,118610.0,118600.0,1.19085237]
[1753020333215,0.2885481,118610.0,118600.0,0.97594477]
[1753020333411,0.2885481,118610.0,118600.0,0.9156963]
[1753020333611,0.2885481,118610.0,118600.0,1.4971363]
[1753020334614,0.2885481,118610.0,118600.0,0.9156963]
[1753020334814,0.5116457,118610.0,118600.0,1.4970963]
[1753020335016,0.5116457,118610.0,118600.0,1.1362963]
[1753020335911,1.0930457,118610.0,118600.0,0.5548963]
[1753020338513,0.8781381,118610.0,118600.0,0.5548963]
[1753020338716,1.0930457,118610.0,118600.0,0.5548963]
[1753020339221,0.5116457,118610.0,118600.0,0.5548963]
[1753020339411,0.2967381,118610.0,118600.0,0.5548963]
[1753020339613,0.12,118610.0,118600.0,0.5548963]
[1753020339814,0.2885481,118610.0,118600.0,0.5548963]
[1753020341018,0.12,118610.0,118600.0,0.5548963]
[1753020341321,0.12,118610.0,118600.0,1.1306039]
[1753020342320,0.12,118610.0,118600.0,1.19085237]
[1753020343422,0.2885481,118610.0,118600.0,1.19085237]
[1753020344119,0.12,118610.0,118600.0,1.1306039]
[1753020349223,0.12,118610.0,118600.0,1.20576739]
[1753020355125,0.01885881,118620.0,118610.0,0.168548]
[1753020355316,0.07885881,118620.0,118610.0,1.57220829]
[1753020355934,0.07885881,118620.0,118610.0,1.57216829]
[1753020356426,0.07885881,118620.0,118610.0,1.51195301]
[1753020356628,0.07885881,118620.0,118610.0,1.51395301]
[1753020356816,0.07885881,118620.0,118610.0,1.51495301]
[1753020358721,0.07885881,118620.0,118610.0,0.93383301]
[1753020358924,0.07885881,118620.0,118610.0,1.51491301]
[1753020360232,0.07885881,118620.0,118610.0,1.72576701]
[1753020361135,0.07885881,118620.0,118610.0,1.14468701]
[1753020361325,0.07885881,118620.0,118610.0,1.72572701]
[1753020361631,0.07885881,118620.0,118610.0,1.8008905]
[1753020362020,0.07885881,118620.0,118610.0,1.2198505]
[1753020362321,0.07885881,118620.0,118610.0,1.8008905]
[1753020363029,0.19815,118640.0,118630.0,0.2343497]
[1753020363233,0.3266555,118640.0,118630.0,1.4950373]
[1753020363435,0.3266555,118640.0,118630.0,1.2801297]
[1753020363636,0.18998,118640.0,118630.0,1.2801297]
[1753020364428,0.19098,118640.0,118630.0,1.2801297]
[1753020364830,0.19098,118640.0,118630.0,1.4950373]
[1753020365030,0.17634,118640.0,118630.0,1.57257517]
[1753020365232,0.111,118640.0,118630.0,1.78342917]
[1753020368935,0.111,118640.0,118630.0,1.72325654]
[1753020369932,0.111,118640.0,118630.0,1.78342917]
[1753020370338,0.111,118640.0,118630.0,1.85255006]
[1753020370634,0.07924,118640.0,118630.0,1.85255006]
[1753020372236,0.07924,118640.0,118630.0,1.63748246]
[1753020372440,0.07924,118640.0,118630.0,1.85239006]
[1753020372741,0.00915346,118650.0,118640.0,0.2264054]
[1753020373038,0.11915346,118650.0,118640.0,1.16548937]
[1753020373235,0.21902119,118670.0,118660.0,0.314737]
[1753020373438,0.37748409,118670.0,118660.0,1.51755767]
[1753020373639,0.13,118670.0,118660.0,1.51559767]
[1753020373938,0.2984628,118670.0,118660.0,1.4685246]
[1753020374134,0.3131028,118670.0,118660.0,1.4685246]
[1753020374643,0.4300728,118670.0,118660.0,0.8864446]
[1753020374943,0.4300728,118670.0,118660.0,0.95013617]
[1753020375135,0.4300728,118670.0,118660.0,1.52179017]
[1753020375337,0.4675028,118670.0,118660.0,1.37589777]
[1753020375944,0.4675028,118670.0,118660.0,1.37577777]
[1753020376242,0.6824104,118670.0,118660.0,0.41055317]
[1753020376444,1.0432104,118670.0,118660.0,0.99239317]
[1753020376641,0.4675028,118670.0,118660.0,1.16087027]
[1753020377141,0.6824104,118670.0,118660.0,1.11583272]
[1753020377640,0.4675028,118670.0,118660.0,1.11583272]
[1753020377943,0.4675028,118670.0,118660.0,1.47663272]
[1753020378147,0.4675028,118670.0,118660.0,0.93983027]
[1753020378340,0.4675028,118670.0,118660.0,1.52211027]
[1753020378545,0.4158728,118670.0,118660.0,1.52211027]
[1753020378745,0.4158728,118670.0,118660.0,1.73701787]
[1753020379247,0.4158728,118670.0,118660.0,1.69198032]
[1753020379445,0.3466128,118670.0,118660.0,1.69198032]
[1753020379944,0.3840428,118670.0,118660.0,1.69198032]
[1753020380242,0.13,118670.0,118660.0,1.69198032]
[1753020380545,0.2984629,118670.0,118660.0,1.73701787]
[1753020380945,0.3131029,118670.0,118660.0,1.73701787]
[1753020382841,0.3205229,118670.0,118660.0,1.73701787]
[1753020383040,0.4675029,118670.0,118660.0,1.52211027]
[1753020383947,0.29904,118670.0,118660.0,1.52211027]
[1753020384147,0.4675029,118670.0,118660.0,1.52211027]
[1753020385851,0.4675029,118670.0,118660.0,1.73701787]
[1753020386149,0.4675029,118670.0,118660.0,1.74185787]
[1753020386552,0.3466129,118670.0,118660.0,1.74284787]